bitfinex/quotes_SOLUSD_20240530
["timestamp","ask_amount","ask_price","bid_price","bid_amount"]
[1717068564178,0.03729832,167.41,167.36,35.99]
[1717068564485,20.63,167.4,167.36,35.99]
[1717068564873,20.63,167.4,167.35,60.0]
[1717068565178,20.63,167.4,167.38,60.0]
[1717068565373,20.63,167.4,167.34,60.0]
[1717068565853,20.63,167.4,167.36,60.0]
[1717068566057,0.03729832,167.41,167.36,60.0]
[1717068566283,0.03729832,167.41,167.38,60.0]
[1717068566858,0.03729832,167.41,167.36,78.01]
[1717068567080,0.03729832,167.41,167.38,60.0]
[1717068570161,0.03729832,167.41,167.4,60.0]
[1717068571784,0.03729832,167.41,167.4,135.7575]
[1717068572567,0.03729832,167.41,167.4,137.9677]
[1717068573983,0.03729832,167.41,167.4,142.3882]
[1717068574282,0.03729832,167.41,167.4,137.9677]
[1717068574671,0.03729832,167.41,167.4,142.3882]
[1717068574865,0.03729832,167.41,167.4,137.9677]
[1717068578595,0.03729832,167.41,167.4,122.7212]
[1717068578900,0.03729832,167.41,167.4,138.9614]
[1717068579398,0.03729832,167.41,167.4,143.3819]
[1717068579898,0.03729832,167.41,167.4,138.9614]
[1717068580984,0.03729832,167.41,167.4,143.3819]
[1717068582495,0.03729832,167.41,167.4,120.6307]
[1717068582679,0.03729832,167.41,167.4,138.5168]
[1717068583778,0.03729832,167.41,167.4,122.5414]
[1717068584092,0.03729832,167.41,167.4,114.0]
[1717068584286,0.03729832,167.41,167.4,60.0]
[1717068585704,0.03729832,167.41,167.38,60.0]
[1717068586274,0.03729832,167.41,167.4,60.0]
[1717068588081,0.03729832,167.41,167.38,60.0]
[1717068588286,0.03729832,167.41,167.4,60.0]
[1717068588674,0.03729832,167.41,167.4,62.2102]
[1717068588879,0.03729832,167.41,167.4,60.0]
[1717068589383,0.03729832,167.41,167.4,78.01]
[1717068590712,0.03729832,167.41,167.4,116.2102]
[1717068590886,0.03729832,167.41,167.4,120.6307]
[1717068591085,0.03729832,167.41,167.4,116.2102]
[1717068595713,0.03729832,167.41,167.4,98.2002]
[1717068595914,0.03729832,167.41,167.4,116.2102]
[1717068596910,0.03729832,167.41,167.4,60.0]
[1717068597883,0.03729832,167.41,167.38,60.0]
[1717068600405,0.03729832,167.41,167.4,60.0]
[1717068600609,0.03729832,167.41,167.37,54.0]
[1717068600610,0.03729832,167.41,167.37,78.01]
[1717068600794,0.03729832,167.41,167.37,60.0]
[1717068601190,0.03729832,167.41,167.39,60.0]
[1717068601790,0.03729832,167.41,167.37,60.0]
[1717068602009,6.07709832,167.41,167.35,388.7]
[1717068602310,6.0398,167.38,167.35,388.7]
[1717068602693,6.484,167.38,167.35,388.7]
[1717068603114,6.3917,167.38,167.35,388.7]
[1717068603293,43.5016,167.36,167.35,388.7]
[1717068603609,64.1316,167.36,167.35,358.95]
[1717068604113,27.0217,167.36,167.35,358.95]
[1717068604504,43.1366,167.36,167.35,358.95]
[1717068605012,63.7666,167.36,167.35,329.2]
[1717068605230,63.7666,167.36,167.25,60.0]
[1717068605404,63.7666,167.36,167.23,20.2225]
[1717068605405,43.1366,167.36,167.24,60.0]
[1717068605595,43.1366,167.36,167.26,60.0]
[1717068606895,43.1366,167.36,167.24,60.0]
[1717068609321,43.1366,167.36,167.22,60.0]
[1717068609614,6.4426,167.35,167.22,60.0]
[1717068610002,6.4426,167.35,167.2,60.0]
[1717068611090,6.4426,167.35,167.22,60.0]
[1717068611296,6.4426,167.35,167.25,60.0]
[1717068611493,6.4426,167.35,167.23,60.0]
[1717068612698,6.4426,167.35,167.21,60.0]
[1717068614023,6.0814,167.33,167.18,62.2131]
[1717068614228,6.0814,167.33,167.19,60.0]
[1717068614397,16.1721,167.34,167.19,60.0]
[1717068614398,20.63,167.24,167.19,60.0]
[1717068614595,20.63,167.24,167.17,62.2132]
[1717068614792,20.63,167.24,167.17,60.0]
[1717068615210,20.63,167.24,167.16,2.2134]
[1717068615211,26.7114,167.24,167.19,60.0]
[1717068615800,20.63,167.24,167.17,60.0]
[1717068616316,20.63,167.24,167.15,486.9035]
[1717068616501,20.63,167.24,167.17,60.0]
[1717068618618,20.63,167.24,167.19,60.0]
[1717068618923,20.63,167.24,167.15,442.7]
[1717068618924,20.63,167.24,167.21,60.0]
[1717068619224,20.63,167.28,167.21,60.0]
[1717068621003,20.63,167.28,167.23,60.0]
[1717068621204,6.4982,167.27,167.23,60.0]
[1717068621928,20.63,167.28,167.21,60.0]
[1717068622103,21.655,167.26,167.19,62.2129]
[1717068622295,6.5181,167.26,167.19,60.0]
[1717068622513,6.5181,167.26,167.21,60.0]
[1717068623514,6.5181,167.26,167.19,95.99]
[1717068623927,6.5181,167.26,167.19,98.203]
[1717068624311,6.5181,167.26,167.19,95.99]
[1717068625705,6.5181,167.26,167.17,60.0]
[1717068627601,6.5181,167.26,167.15,468.9235]
[1717068627806,6.5181,167.26,167.15,448.7]
[1717068628028,20.63,167.19,167.13,60.0]
[1717068628325,20.63,167.19,167.11,98.204]
[1717068628533,27.0612,167.19,167.11,62.214]
[1717068628831,27.0612,167.19,167.15,60.0]
[1717068629812,27.0612,167.19,167.13,60.0]
[1717068630019,6.6601,167.23,167.17,60.0]
[1717068631033,6.6601,167.23,167.19,60.0]
[1717068631213,6.6601,167.23,167.17,60.0]
[1717068632115,6.6601,167.23,167.15,98.2035]
[1717068632427,6.6601,167.23,167.15,60.0]
[1717068633112,6.6601,167.23,167.13,62.2138]
[1717068633326,6.6601,167.23,167.13,60.0]
[1717068635233,6.6601,167.23,167.15,60.0]
[1717068636229,6.3171,167.24,167.18,60.0]
[1717068637520,6.3171,167.24,167.2,60.0]
[1717068638017,6.3171,167.24,167.18,60.0]
[1717068639740,6.3171,167.24,167.16,60.0]
[1717068640134,20.63,167.22,167.16,60.0]
[1717068641336,27.0571,167.22,167.18,60.0]
[1717068641537,27.0571,167.22,167.16,60.0]
[1717068641733,27.0571,167.22,167.18,60.0]
[1717068642118,27.0571,167.22,167.16,60.0]
[1717068642319,20.63,167.22,167.19,60.0]
[1717068642741,20.63,167.25,167.19,60.0]
[1717068643115,20.63,167.25,167.21,60.0]
[1717068644141,20.63,167.25,167.21,114.0]
[1717068644316,27.1199,167.28,167.23,60.0]
[1717068644516,6.4502,167.27,167.21,60.0]
[1717068648936,6.4502,167.27,167.23,60.0]
[1717068649517,6.4502,167.27,167.21,60.0]
[1717068649723,6.4502,167.27,167.23,60.0]
[1717068651342,20.63,167.28,167.25,60.0]
[1717068652630,20.63,167.28,167.23,60.0]
[1717068653024,6.3888,167.27,167.23,60.0]
[1717068653221,20.63,167.28,167.23,60.0]
[1717068653424,6.5075,167.26,167.23,60.0]
[1717068654636,6.5075,167.26,167.2,60.0]
[1717068654857,6.5075,167.26,167.18,60.0]
[1717068655024,20.63,167.24,167.18,62.2131]
[1717068655756,20.63,167.24,167.18,60.0]
[1717068656260,20.63,167.24,167.17,426.9032]
[1717068656261,20.63,167.24,167.17,388.7]
[1717068659942,20.63,167.24,167.16,62.2134]
[1717068660344,20.63,167.24,167.19,60.0]
[1717068660855,26.8241,167.24,167.19,60.0]
[1717068663552,6.1941,167.24,167.19,60.0]
[1717068663844,71.89411484,167.33,167.19,60.0]
[1717068664041,6.0904,167.32,167.19,60.0]
[1717068664242,6.0904,167.32,167.17,60.0]
[1717068664243,20.63,167.24,167.17,60.0]
[1717068664652,6.0904,167.23,167.17,60.0]
[1717068665147,20.63,167.24,167.2,60.0]
[1717068665746,26.7066,167.24,167.18,60.0]
[1717068665947,26.7066,167.24,167.16,98.2033]
[1717068666255,26.7066,167.24,167.18,60.0]
[1717068666948,26.7066,167.24,167.16,98.2034]
[1717068667146,6.0766,167.24,167.16,60.0]
[1717068668251,6.0766,167.24,167.18,60.0]
[1717068668451,26.7066,167.24,167.16,60.0]
[1717068669548,6.0766,167.24,167.14,60.0]
[1717068669751,6.0766,167.24,167.14,62.2137]
[1717068669948,6.0766,167.24,167.15,2.2135]
[1717068670156,6.0766,167.24,167.14,62.2136]
[1717068670459,22.6916,167.24,167.14,60.0]
[1717068671347,22.6916,167.24,167.12,408.9239]
[1717068671348,22.6916,167.24,167.12,448.7]
[1717068671546,20.63,167.19,167.12,450.9139]
[1717068672234,20.63,167.19,167.12,448.7]
[1717068673349,20.63,167.19,167.12,450.9139]
[1717068673758,20.63,167.19,167.14,60.0]
[1717068674060,20.63,167.19,167.12,390.9139]
[1717068674061,26.7394,167.19,167.16,60.0]
[1717068674358,26.7394,167.19,167.14,60.0]
[1717068675860,20.63,167.19,167.16,60.0]
[1717068676042,6.1094,167.23,167.16,60.0]
[1717068677460,6.1094,167.23,167.18,60.0]
[1717068677646,22.7244,167.24,167.18,60.0]
[1717068678045,6.4777,167.23,167.2,60.0]
[1717068679874,20.63,167.24,167.2,114.0]
[1717068680041,20.63,167.28,167.24,60.0]
[1717068681069,26.6593,167.28,167.22,60.0]
[1717068681367,26.6593,167.28,167.2,60.0]
[1717068681842,6.0293,167.28,167.2,60.0]
[1717068685460,20.63,167.24,167.16,116.2133]
[1717068685666,20.63,167.24,167.19,60.0]
[1717068687287,6.0293,167.28,167.19,60.0]
[1717068687562,6.0293,167.28,167.21,60.0]
[1717068688773,6.0293,167.28,167.23,60.0]
[1717068690273,20.63,167.3,167.23,60.0]
[1717068692664,20.63,167.3,167.21,95.99]
[1717068694474,6.1785,167.32,167.19,60.0]
[1717068694674,16.1264,167.31,167.19,60.0]
[1717068695180,16.1264,167.31,167.21,60.0]
[1717068695675,16.1264,167.31,167.19,62.213]
[1717068695973,16.1264,167.31,167.19,60.0]
[1717068696559,16.1264,167.31,167.21,60.0]
[1717068697862,16.1264,167.31,167.19,60.0]
[1717068698171,20.63,167.28,167.17,60.0]
[1717068698678,6.4931,167.27,167.15,62.2135]
[1717068700055,6.4931,167.27,167.16,2.2134]
[1717068700584,6.4931,167.27,167.17,60.0]
[1717068701262,6.4931,167.27,167.21,60.0]
[1717068701888,20.63,167.28,167.23,60.0]
[1717068703774,20.63,167.28,167.21,98.2027]
[1717068703963,20.63,167.28,167.23,60.0]
[1717068705370,26.7323,167.28,167.23,60.0]
[1717068705573,20.63,167.28,167.21,95.99]
[1717068705775,20.63,167.28,167.21,60.0]
[1717068708965,20.63,167.28,167.23,60.0]
[1717068709170,27.2893,167.28,167.23,60.0]
[1717068710588,6.6593,167.28,167.23,60.0]
[1717068711677,6.2911,167.3,167.21,60.0]
[1717068712283,6.88,167.28,167.24,60.0]
[1717068712479,6.88,167.25,167.24,60.0]
[1717068713972,6.88,167.25,167.22,60.0]
[1717068714177,6.88,167.23,167.22,60.0]
[1717068716190,6.88,167.23,167.2,60.0]
[1717068716391,6.88,167.21,167.2,60.0]
[1717068717188,6.88,167.21,167.2,62.2129]
[1717068718109,6.88,167.21,167.2,60.0]
[1717068718775,6.88,167.21,167.18,60.0]
[1717068718977,27.52,167.28,167.2,60.0]
[1717068719205,6.88,167.21,167.2,60.0]
[1717068719698,6.88,167.21,167.2,62.2129]
[1717068720995,27.52,167.28,167.24,60.0]
[1717068721202,6.88,167.25,167.24,60.0]
[1717068724195,6.88,167.25,167.22,60.0]
[1717068724388,6.88,167.23,167.22,60.0]
[1717068726084,6.88,167.23,167.22,62.2126]
[1717068726490,6.88,167.23,167.22,60.0]
[1717068726686,6.2911,167.3,167.25,60.0]
[1717068727191,6.88,167.26,167.25,60.0]
[1717068727398,6.2911,167.3,167.25,60.0]
[1717068727584,6.88,167.26,167.25,60.0]
[1717068728586,6.4304,167.34,167.27,60.0]
[1717068728785,6.88,167.28,167.27,60.0]
[1717068730104,6.4304,167.34,167.27,60.0]
[1717068730325,6.4304,167.34,167.29,60.0]
[1717068730490,6.88,167.3,167.29,60.0]
[1717068731213,27.52,167.36,167.31,60.0]
[1717068731417,6.88,167.32,167.31,60.0]
[1717068731611,6.88,167.32,167.28,60.0]
[1717068731795,27.52,167.36,167.3,60.0]
[1717068731993,6.88,167.31,167.28,60.0]
[1717068732209,6.88,167.29,167.26,62.212]
[1717068732405,6.88,167.27,167.26,62.212]
[1717068734909,6.88,167.27,167.26,60.0]
[1717068736214,6.88,167.27,167.24,62.2123]
[1717068736390,6.88,167.28,167.24,62.2123]
[1717068736591,6.88,167.28,167.25,2.2122]
[1717068736831,6.88,167.28,167.24,60.0]
[1717068736832,27.52,167.36,167.26,62.2121]
[1717068737126,6.88,167.27,167.26,62.2121]
[1717068737358,1.1903518,167.27,167.25,2.2122]
[1717068737502,27.52,167.36,167.24,60.0]
[1717068738099,6.88,167.36,167.34,60.0]
[1717068738399,6.88,167.37,167.34,60.0]
[1717068739105,6.88,167.35,167.32,60.0]
[1717068739315,6.88,167.35,167.34,60.0]
[1717068739515,6.0122,167.43,167.34,60.0]
[1717068739816,6.88,167.35,167.34,60.0]
[1717068740419,20.64729832,167.41,167.34,60.0]
[1717068741436,20.64729832,167.41,167.32,60.0]
[1717068741994,0.03729832,167.41,167.3,60.0]
[1717068743093,0.03729832,167.41,167.32,60.0]
[1717068746024,0.03729832,167.41,167.3,60.0]
[1717068747115,0.03729832,167.41,167.32,60.0]
[1717068747511,0.03729832,167.41,167.3,60.0]
[1717068747925,0.03729832,167.41,167.3,62.2115]
[1717068748720,0.03729832,167.41,167.32,60.0]
[1717068750326,0.03729832,167.41,167.3,62.2115]
[1717068752828,0.03729832,167.41,167.32,60.0]
[1717068753914,0.03729832,167.41,167.3,60.0]
[1717068754622,0.03729832,167.41,167.28,60.0]
[1717068754923,20.61,167.35,167.28,60.0]
[1717068755125,20.61,167.35,167.28,62.2118]
[1717068755809,20.61,167.35,167.28,60.0]
[1717068756424,20.61,167.35,167.27,390.9119]
[1717068756425,20.61,167.35,167.27,388.7]
[1717068756624,20.61,167.35,167.26,62.212]
[1717068757831,20.61,167.35,167.27,2.2119]
[1717068758125,20.61,167.35,167.26,62.212]
[1717068760029,20.61,167.35,167.27,2.2119]
[1717068761634,20.61,167.35,167.28,2.2118]
[1717068761821,20.61,167.35,167.27,2.2119]
[1717068762327,6.2307,167.37,167.27,2.2119]
[1717068762328,6.88,167.28,167.27,2.2119]
[1717068763544,6.88,167.28,167.26,62.212]
[1717068763798,6.88,167.27,167.26,62.212]
[1717068764266,27.52,167.36,167.27,2.2119]
[1717068764465,27.52,167.36,167.26,62.2121]
[1717068765051,27.52,167.36,167.27,2.2119]
[1717068765650,27.52,167.36,167.26,62.212]
[1717068766036,27.52,167.36,167.27,2.2118]
[1717068766346,27.52,167.36,167.28,60.0]
[1717068766531,6.2307,167.37,167.28,62.2118]
[1717068766722,6.88,167.29,167.28,62.2118]
[1717068768050,27.52,167.36,167.28,62.2118]
[1717068769350,27.52,167.36,167.28,60.0]
[1717068770238,27.52,167.36,167.3,60.0]
[1717068774742,15.9556,167.4,167.32,60.0]
[1717068774943,15.9556,167.4,167.34,60.0]
[1717068775537,6.88,167.35,167.34,60.0]
[1717068776548,6.88,167.35,167.32,60.0]
[1717068776746,15.9556,167.4,167.32,60.0]
[1717068777958,15.9556,167.4,167.35,60.0]
[1717068778130,6.88,167.36,167.35,60.0]
[1717068778329,6.88,167.36,167.33,60.0]
[1717068778526,6.88,167.34,167.33,60.0]
[1717068779051,15.9556,167.4,167.33,60.0]
[1717068779239,6.29139832,167.41,167.33,60.0]
[1717068779429,6.29139832,167.41,167.31,60.0]
[1717068779629,0.03729832,167.41,167.31,60.0]
[1717068780679,6.88,167.32,167.31,60.0]
[1717068781149,6.88,167.32,167.29,62.2116]
[1717068781341,6.88,167.3,167.29,62.2116]
[1717068782547,6.88,167.31,167.3,60.0]
[1717068782758,27.52,167.36,167.32,60.0]
[1717068783135,6.88,167.33,167.32,60.0]
[1717068784240,6.88,167.33,167.3,62.2115]
[1717068784250,6.88,167.31,167.3,62.2115]
[1717068785032,6.88,167.31,167.3,60.0]
[1717068785532,6.88,167.31,167.3,62.2115]
[1717068785867,2.2109,167.35,167.32,60.0]
[1717068786042,27.52,167.36,167.32,60.0]
[1717068786295,6.88,167.33,167.32,60.0]
[1717068787732,2.2115,167.31,167.3,60.0]
[1717068787743,6.88,167.31,167.3,60.0]
[1717068787986,9.0914,167.31,167.28,95.99]
[1717068788259,6.88,167.29,167.28,98.2018]
[1717068788751,6.88,167.29,167.28,60.0]
[1717068788883,6.88,167.29,167.24,95.99]
[1717068789094,27.52,167.36,167.24,95.99]
[1717068789279,27.52,167.36,167.24,98.2023]
[1717068789758,2.2118,167.29,167.24,98.2023]
[1717068790513,27.52,167.36,167.22,71.19456705]
[1717068790768,2.2121,167.26,167.22,68.98206705]
[1717068791611,2.212,167.27,167.22,71.19466705]
[1717068792108,2.2121,167.26,167.22,71.19466705]
[1717068792457,2.2119,167.28,167.24,60.0]
[1717068792462,6.88,167.25,167.24,60.0]
[1717068793876,2.2117,167.3,167.26,60.0]
[1717068794172,6.88,167.27,167.26,60.0]
[1717068795372,6.88,167.27,167.24,62.2123]
[1717068795574,6.88,167.25,167.24,62.2123]
[1717068795944,6.88,167.25,167.22,8.98206705]
[1717068795945,2.2124,167.24,167.22,8.98206705]
[1717068796220,76.93542087,167.39,167.22,8.98206705]
[1717068796221,6.88,167.23,167.22,8.98206705]
[1717068796753,9.0925,167.23,167.22,8.98206705]
[1717068798675,9.0925,167.23,167.22,5.48206705]
[1717068799368,15.1052,167.23,167.22,5.48206705]
[1717068800008,9.0925,167.23,167.22,5.48206705]
[1717068801697,15.3328,167.23,167.22,5.48206705]
[1717068802682,9.0925,167.23,167.22,5.48206705]
[1717068805196,15.5065,167.23,167.22,5.48206705]
[1717068805516,36.6125,167.23,167.22,5.48206705]
[1717068805742,9.0925,167.23,167.22,5.48206705]
[1717068812210,8.85,167.22,167.21,8.98254712]
[1717068812421,15.73,167.22,167.21,8.98254712]
[1717068812713,22.61,167.22,167.21,8.98254712]
[1717068818905,15.9726,167.22,167.21,8.98254712]
[1717068819508,2.2126,167.22,167.21,8.98254712]
[1717068819551,9.0926,167.22,167.21,8.98254712]
[1717068820939,6.88,167.22,167.12,15.2255]
[1717068821163,2.2137,167.14,167.13,6.0088]
[1717068821388,9.0937,167.14,167.13,6.0088]
[1717068821712,6.88,167.14,167.13,6.0088]
[1717068822801,2.2135,167.15,167.11,116.214]
[1717068823030,2.2135,167.15,167.14,22.1755]
[1717068823470,9.0935,167.15,167.14,22.1755]
[1717068823780,6.88,167.15,167.14,22.1755]
[1717068824715,9.0933,167.17,167.16,6.5225]
[1717068826432,2.2133,167.17,167.15,35.99]
[1717068826708,2.2131,167.18,167.16,6.3532]
[1717068826935,17.26039607,167.26,167.16,6.3532]
[1717068826936,2.213,167.19,167.17,6.3532]
[1717068827610,2.2131,167.18,167.17,6.3532]
[1717068827825,2.213,167.19,167.17,75.6944]
[1717068828027,17.26039607,167.26,167.19,60.0]
[1717068828355,9.0926,167.22,167.2,22.0476]
[1717068828446,2.2127,167.21,167.2,22.0476]
[1717068829015,2.2129,167.2,167.17,21.8799]
[1717068829809,2.2128,167.21,167.17,21.8799]
[1717068830023,2.2128,167.21,167.18,6.3022]
[1717068830815,2.2129,167.2,167.18,6.3022]
[1717068831440,6.88,167.19,167.17,15.2571]
[1717068831796,2.2129,167.2,167.17,21.4569]
[1717068832028,2.2131,167.19,167.17,6.1998]
[1717068832238,6.88,167.18,167.17,6.1998]
[1717068835042,6.88,167.18,167.15,42.3869]
[1717068835418,9.0931,167.18,167.15,42.3869]
[1717068835660,2.2131,167.18,167.15,58.557]
[1717068835936,2.2131,167.18,167.15,22.567]
[1717068837490,2.2131,167.18,167.14,95.99]
[1717068837753,2.2133,167.17,167.14,35.99]
[1717068837943,2.2133,167.17,167.13,42.5344]
[1717068838281,2.2133,167.17,167.14,6.5444]
[1717068840227,2.2132,167.18,167.15,60.0]
[1717068840579,2.2132,167.18,167.15,66.613]
[1717068840923,2.213,167.19,167.15,66.613]
[1717068841330,2.213,167.19,167.17,60.0]
[1717068841547,2.2129,167.2,167.17,60.0]
[1717068841950,2.2129,167.2,167.17,66.613]
[1717068844156,2.213,167.19,167.17,66.613]
[1717068844355,2.213,167.19,167.17,6.613]
[1717068844546,6.88,167.28,167.18,2.2131]
[1717068844865,2.2129,167.21,167.17,102.603]
[1717068845038,6.88,167.19,167.17,102.603]
[1717068846469,6.88,167.19,167.17,118.1405]
[1717068847437,2.2129,167.2,167.17,118.1405]
[1717068847640,2.213,167.19,167.17,118.1405]
[1717068847853,2.213,167.19,167.17,102.603]
[1717068848261,2.213,167.19,167.17,42.603]
[1717068848933,2.2129,167.2,167.17,42.603]
[1717068849154,2.2129,167.2,167.17,102.603]
[1717068849403,9.0929,167.2,167.17,102.603]
[1717068850565,2.2126,167.22,167.19,60.0]
[1717068850755,2.2125,167.24,167.21,60.0]
[1717068851064,6.88,167.28,167.21,60.0]
[1717068851065,9.0926,167.23,167.21,60.0]
[1717068851472,6.88,167.25,167.23,60.0]
[1717068851664,17.25295824,167.33,167.23,114.0]
[1717068851838,2.2121,167.26,167.23,120.4423]
[1717068852476,2.2122,167.25,167.23,102.4323]
[1717068852802,2.2121,167.26,167.23,102.4323]
[1717068853734,2.2119,167.28,167.25,60.0]
[1717068854069,2.212,167.27,167.25,60.0]
[1717068854859,2.212,167.27,167.23,120.4423]
[1717068855551,6.88,167.25,167.23,120.4423]
[1717068855741,6.88,167.25,167.23,102.4323]
[1717068857470,6.88,167.25,167.22,35.99]
[1717068857773,2.2121,167.26,167.22,35.99]
[1717068857968,2.2121,167.26,167.23,60.0]
[1717068858163,2.2121,167.26,167.22,35.99]
[1717068858384,2.2126,167.22,167.19,490.8773]
[1717068858542,2.2126,167.22,167.19,388.7]
[1717068858840,6.88,167.2,167.19,388.7]
[1717068862076,6.88,167.2,167.16,35.99]
[1717068862415,27.52,167.28,167.16,35.99]
[1717068862860,27.52,167.28,167.16,38.2034]
[1717068863676,27.52,167.28,167.16,35.99]
[1717068863968,6.88,167.2,167.17,95.99]
[1717068864348,6.88,167.2,167.17,98.2033]
[1717068864551,27.52,167.28,167.17,98.2033]
[1717068865983,27.52,167.28,167.17,95.99]
[1717068866184,6.88,167.2,167.17,95.99]
[1717068866847,6.88,167.2,167.16,35.99]
[1717068867711,27.52,167.28,167.16,35.99]
[1717068870476,27.52,167.28,167.17,60.0]
[1717068870648,15.4885,167.27,167.15,98.2035]
[1717068870851,15.4885,167.27,167.15,95.99]
[1717068871059,6.88,167.18,167.14,2.2136]
[1717068871372,6.0905,167.23,167.13,60.0]
[1717068872254,6.0905,167.23,167.15,60.0]
[1717068872894,6.0905,167.23,167.13,114.0]
[1717068873277,6.0905,167.23,167.13,116.2138]
[1717068874473,6.0905,167.23,167.13,60.0]
[1717068874881,6.88,167.15,167.13,60.0]
[1717068875078,6.88,167.15,167.11,98.204]
[1717068875381,6.0905,167.23,167.13,60.0]
[1717068875983,6.0905,167.23,167.15,60.0]
[1717068876250,6.88,167.18,167.15,60.0]
[1717068877371,6.0905,167.23,167.1,60.0]
[1717068877677,6.88,167.13,167.1,60.0]
[1717068877784,6.88,167.14,167.1,60.0]
[1717068878017,20.64,167.2,167.1,62.2142]
[1717068878018,27.52,167.2,167.1,62.2142]
[1717068879026,27.52,167.2,167.1,60.0]
[1717068887504,16.3773,167.21,167.1,60.0]
[1717068887695,6.88,167.14,167.1,60.0]
[1717068888895,6.88,167.16,167.12,95.99]
[1717068890608,6.88,167.15,167.12,95.99]
[1717068891795,6.88,167.2,167.12,95.99]
[1717068892495,6.0905,167.23,167.14,60.0]
[1717068892683,6.0905,167.23,167.16,60.0]
[1717068892893,6.88,167.19,167.16,60.0]
[1717068893084,6.0905,167.23,167.16,60.0]
[1717068897305,6.88,167.19,167.16,60.0]
[1717068897792,6.0905,167.23,167.16,60.0]
[1717068900655,6.0905,167.23,167.14,95.99]
[1717068901084,6.0905,167.23,167.11,6.3531]
[1717068901364,6.88,167.14,167.1,457.1624]
[1717068901829,6.88,167.14,167.11,35.99]
[1717068902703,6.88,167.14,167.11,38.204]
[1717068903199,6.88,167.14,167.11,35.99]
[1717068903312,6.88,167.14,167.1,454.9482]
[1717068903553,6.88,167.13,167.1,448.7]
[1717068904720,6.3444,167.19,167.1,388.7]
[1717068905903,6.3444,167.19,167.08,35.99]
[1717068908106,6.3444,167.19,167.07,62.2146]
[1717068908288,6.3444,167.19,167.07,60.0]
[1717068908289,21.4514,167.19,167.07,60.0]
[1717068910710,17.26590369,167.18,167.07,60.0]
[1717068911011,21.4514,167.19,167.07,60.0]
[1717068911207,17.26572365,167.18,167.07,60.0]
[1717068911412,21.4514,167.19,167.07,60.0]
[1717068912208,17.26592044,167.18,167.07,60.0]
[1717068912506,21.4514,167.19,167.07,60.0]
[1717068913012,17.26601046,167.18,167.07,60.0]
[1717068913393,6.88,167.12,167.07,60.0]
[1717068913890,6.88,167.08,167.04,4.86150651]
[1717068914101,6.88,167.06,167.03,60.0]
[1717068914379,6.88,167.05,167.0,66.93507751]
[1717068915406,6.88,167.05,167.0,64.71967751]